Workbook

Sheet StockSim
A1: Simulating Stock Value
A2: 0.1 | B2: Mean (Annual Return) | E2: Use {Shift} F9 to refresh Data Table Simulation
A3: 0.18 | B3: Return Annual Standard Deviation
A4: 50 | B4: Initial stock price
B5: Time | C5: Stock price
B6: 0 | C6: =A4 -> 50 | D6: =getformula(C6) -> <-- =A4
B7: 1 | C7: =C6*(1+_xlfn.NORM.INV(RAND(),$A$2,$A$3)) -> 64.92681982 | D7: =getformula(C7) -> <-- =C6*(1+NORM.INV(RAND(),$A$2,$A$3))
B8: 2 | C8: =C7*(1+_xlfn.NORM.INV(RAND(),$A$2,$A$3)) -> 55.67015038
B9: 3 | C9: 56.81841951
B10: 4 | C10: 52.70392832
B11: 5 | C11: 42.35926656
B12: 6 | C12: 50.15808862
B13: 7 | C13: 47.91779393
B14: 8 | C14: 55.51218708
B15: 9 | C15: 68.16173838
B16: 10 | C16: 72.60282971
B17: 11 | C17: 50.44410891
B18: 12 | C18: 59.53607713
B19: 13 | C19: 59.77248587
B20: 14 | C20: 84.59906446
B21: 15 | C21: 87.30295425
B22: 16 | C22: 131.4456627
B23: 17 | C23: 152.1391176
B24: 18 | C24: 113.1182014
B25: 19 | C25: 159.2496622
B26: 20 | C26: 163.5325609 | D26: <-- Future Value of Stock (FV)
B28: =COUNT(DATA) -> 10000 | C28: Simulated Values
B29: =MIN(DATA) -> 12.42573632 | C29: Minimum
B30: =MAX(DATA) -> 5260.600126 | C30: Maximum
B31: =(B30-B29)/7 -> 749.7391985 | C31: Interval Width
A32: Bin | B32: Frequency | C32: Probability | D32: Percentile | E32: Percentile.inc
A33: 25 | B33: =FREQUENCY(DATA,A33:A58) -> 13 | C33: =B33/$B$28 -> 0.0013 | D33: 0.01 | E33: =_xlfn.PERCENTILE.INC(DATA,D33) -> 40.84214242
A34: =A33+50 -> 75 | B34: 551 | C34: =B34/$B$28 -> 0.0551 | D34: =D33+0.04 -> 0.05 | E34: =_xlfn.PERCENTILE.INC(DATA,D34) -> 71.44280304
A35: =A34+50 -> 125 | B35: 1187 | C35: =B35/$B$28 -> 0.1187 | D35: =D34+0.04 -> 0.09 | E35: =_xlfn.PERCENTILE.INC(DATA,D35) -> 92.26284936
A36: 175 | B36: 1274 | C36: =B36/$B$28 -> 0.1274 | D36: 0.13 | E36: =_xlfn.PERCENTILE.INC(DATA,D36) -> 108.3507317
A37: 225 | B37: 1196 | C37: =B37/$B$28 -> 0.1196 | D37: 0.17 | E37: =_xlfn.PERCENTILE.INC(DATA,D37) -> 123.0463173
A38: 275 | B38: 1017 | C38: =B38/$B$28 -> 0.1017 | D38: 0.21 | E38: =_xlfn.PERCENTILE.INC(DATA,D38) -> 139.1506597
A39: 325 | B39: 901 | C39: =B39/$B$28 -> 0.0901 | D39: 0.25 | E39: =_xlfn.PERCENTILE.INC(DATA,D39) -> 154.6257727
A40: =A39+50 -> 375 | B40: 750 | C40: =B40/$B$28 -> 0.075 | D40: 0.29 | E40: =_xlfn.PERCENTILE.INC(DATA,D40) -> 169.6468875
A41: 425 | B41: 578 | C41: =B41/$B$28 -> 0.0578 | D41: 0.33 | E41: =_xlfn.PERCENTILE.INC(DATA,D41) -> 185.5776528
A42: 475 | B42: 494 | C42: =B42/$B$28 -> 0.0494 | D42: 0.37 | E42: =_xlfn.PERCENTILE.INC(DATA,D42) -> 201.3017964
A43: 525 | B43: 336 | C43: =B43/$B$28 -> 0.0336 | D43: 0.41 | E43: =_xlfn.PERCENTILE.INC(DATA,D43) -> 219.1472326
A44: 575 | B44: 259 | C44: =B44/$B$28 -> 0.0259 | D44: 0.45 | E44: =_xlfn.PERCENTILE.INC(DATA,D44) -> 237.2484853
A45: 625 | B45: 269 | C45: =B45/$B$28 -> 0.0269 | D45: 0.49 | E45: =_xlfn.PERCENTILE.INC(DATA,D45) -> 256.8453887
A46: 675 | B46: 200 | C46: =B46/$B$28 -> 0.02 | D46: 0.53 | E46: =_xlfn.PERCENTILE.INC(DATA,D46) -> 278.2346564
A47: 725 | B47: 162 | C47: =B47/$B$28 -> 0.0162 | D47: 0.57 | E47: =_xlfn.PERCENTILE.INC(DATA,D47) -> 301.0548956
A48: 775 | B48: 127 | C48: =B48/$B$28 -> 0.0127 | D48: 0.61 | E48: =_xlfn.PERCENTILE.INC(DATA,D48) -> 322.8340517
A49: 825 | B49: 125 | C49: =B49/$B$28 -> 0.0125 | D49: 0.65 | E49: =_xlfn.PERCENTILE.INC(DATA,D49) -> 347.449047
A50: 875 | B50: 98 | C50: =B50/$B$28 -> 0.0098 | D50: 0.69 | E50: =_xlfn.PERCENTILE.INC(DATA,D50) -> 375.9066869
A51: 925 | B51: 70 | C51: =B51/$B$28 -> 0.007 | D51: 0.73 | E51: =_xlfn.PERCENTILE.INC(DATA,D51) -> 407.4827267
A52: 975 | B52: 62 | C52: =B52/$B$28 -> 0.0062 | D52: 0.77 | E52: =_xlfn.PERCENTILE.INC(DATA,D52) -> 447.7583545
A53: 1025 | B53: 51 | C53: 0.0051 | D53: 0.81 | E53: =_xlfn.PERCENTILE.INC(DATA,D53) -> 496.8407073
A54: 1075 | B54: 40 | C54: 0.004 | D54: 0.85 | E54: =_xlfn.PERCENTILE.INC(DATA,D54) -> 563.0609449
A55: 1125 | B55: 32 | C55: 0.0032 | D55: 0.89 | E55: =_xlfn.PERCENTILE.INC(DATA,D55) -> 639.2043406
A56: 1175 | B56: 41 | C56: 0.0041 | D56: 0.92 | E56: =_xlfn.PERCENTILE.INC(DATA,D56) -> 731.3789474
A57: 1225 | B57: 24 | C57: 0.0024 | D57: 0.95 | E57: =_xlfn.PERCENTILE.INC(DATA,D57) -> 856.8623786
A58: 1275 | B58: 17 | C58: =B58/$B$28 -> 0.0017 | D58: 0.98 | E58: =_xlfn.PERCENTILE.INC(DATA,D58) -> 1136.908379
B59: 126
A60: Percentile | B60: FV
A61: 0.1 | B61: =_xlfn.PERCENTILE.INC(DATA,A61) -> 96.38606314 | C61: =_xlfn.FORMULATEXT(B61) -> =PERCENTILE.INC(DATA,A61) | F61: =COUNTIF(DATA,"<"&FIXED(B61,4))/$B$28 -> 0.1 | G61: =_xlfn.FORMULATEXT(F61) -> =COUNTIF(DATA,"<"&FIXED(B61,4))/$B$28 | K61: =MEDIAN(DATA) -> 261.9579557 | L61: =_xlfn.FORMULATEXT(K61) -> =MEDIAN(DATA)
A62: 0.5 | B62: =_xlfn.PERCENTILE.INC(DATA,A62) -> 261.9579557 | C62: =_xlfn.FORMULATEXT(B62) -> =PERCENTILE.INC(DATA,A62) | F62: =COUNTIF(DATA,"<"&FIXED(B62,4))/$B$28 -> 0.5 | G62: =_xlfn.FORMULATEXT(F62) -> =COUNTIF(DATA,"<"&FIXED(B62,4))/$B$28
A63: 0.9 | B63: =_xlfn.PERCENTILE.INC(DATA,A63) -> 667.8659459 | C63: =PERCENTILE.INC(DATA,A63) | F63: =COUNTIF(DATA,"<"&FIXED(B63,4))/$B$28 -> 0.9 | G63: =COUNTIF(DATA,"<"&FIXED(B63,4))/$B$28
A65: 2-Way Data Table to Simulate FV 10,000 times
A66: Dummy 1 | C66: Mean --> | D66: =AVERAGE(DATA) -> 338.0747854 | E66: Sample Std
A67: Dummy 2 | C67: Standard Deviation --> | D67: =_xlfn.STDEV.S(DATA) -> 284.6526379 | E67: =D67/10000^0.2 -> 45.11440281 | F67: <-- Sample Standard Deviation
A68: =C26 -> 163.5325609 | B68: 1 | C68: 2 | D68: 3 | E68: 4 | F68: 5 | G68: 6 | H68: 7 | I68: 8 | J68: 9 | K68: 10
A69: 1 | B69: 399.1366649 | C69: 834.3752288 | D69: 199.0793879 | E69: 202.4054879 | F69: 94.29695791 | G69: 166.7700767 | H69: 94.40647221 | I69: 187.9447984 | J69: 236.731867 | K69: 431.9044022
A70: 2 | B70: 416.5495883 | C70: 457.5117481 | D70: 111.1517406 | E70: 87.46903 | F70: 407.4673935 | G70: 94.5187462 | H70: 306.633529 | I70: 303.199448 | J70: 416.5087165 | K70: 334.8896968
A71: 3 | B71: 147.1780956 | C71: 295.1433682 | D71: 501.1130808 | E71: 560.912639 | F71: 349.2471193 | G71: 614.9493434 | H71: 1126.03889 | I71: 302.5977965 | J71: 104.4098469 | K71: 112.6195481
A72: 4 | B72: 410.2233692 | C72: 956.0605277 | D72: 144.8378872 | E72: 170.1982285 | F72: 134.5837068 | G72: 93.72075092 | H72: 110.5762975 | I72: 406.4534773 | J72: 711.5828223 | K72: 437.0343077
A73: 5 | B73: 412.7248469 | C73: 222.3526494 | D73: 111.9113575 | E73: 96.65399103 | F73: 246.2684188 | G73: 243.3192542 | H73: 283.3444035 | I73: 165.4516078 | J73: 157.5749095 | K73: 347.3467313
A74: 6 | B74: 638.5512376 | C74: 465.3758061 | D74: 135.885935 | E74: 268.2268965 | F74: 91.80598721 | G74: 219.6205279 | H74: 929.7561385 | I74: 138.1852198 | J74: 367.6550844 | K74: 832.3739411
A75: 7 | B75: 237.7016666 | C75: 195.7279495 | D75: 509.821909 | E75: 228.9620151 | F75: 253.1446077 | G75: 27.75639287 | H75: 612.5775858 | I75: 592.3910334 | J75: 231.2214826 | K75: 386.7560189
A76: 8 | B76: 163.9247948 | C76: 338.8772155 | D76: 262.9126695 | E76: 296.1383301 | F76: 201.1568135 | G76: 699.5992098 | H76: 398.9619295 | I76: 251.1523963 | J76: 253.0873349 | K76: 390.8322161
A77: 9 | B77: 422.3812448 | C77: 76.72901775 | D77: 372.2135327 | E77: 276.1798411 | F77: 188.5662818 | G77: 198.6638929 | H77: 142.101673 | I77: 88.76232537 | J77: 181.3322122 | K77: 109.3613057
A78: 10 | B78: 652.5921949 | C78: 215.258599 | D78: 404.8408358 | E78: 416.2021256 | F78: 456.4372382 | G78: 139.3674375 | H78: 412.5209319 | I78: 116.7082783 | J78: 128.1860742 | K78: 173.0232975
A79: 11 | B79: 147.7967641 | C79: 74.08494277 | D79: 370.0720168 | E79: 112.7083034 | F79: 226.2824685 | G79: 475.3487864 | H79: 350.9955807 | I79: 327.094949 | J79: 590.1892854 | K79: 396.035733
A80: 12 | B80: 201.7121162 | C80: 218.2163045 | D80: 137.6874953 | E80: 138.8025072 | F80: 415.2011109 | G80: 190.7374042 | H80: 194.9914043 | I80: 195.6711799 | J80: 1473.360787 | K80: 92.68485054
A81: 13 | B81: 456.6826631 | C81: 347.9151984 | D81: 190.0264806 | E81: 156.6030126 | F81: 814.6650295 | G81: 96.21116811 | H81: 1210.231738 | I81: 605.0160241 | J81: 284.5349922 | K81: 336.3383415
A82: 14 | B82: 440.7207293 | C82: 117.678053 | D82: 106.918156 | E82: 688.0397949 | F82: 336.9324663 | G82: 108.2457841 | H82: 523.4255115 | I82: 464.7438957 | J82: 204.7627532 | K82: 436.8545244
A83: 15 | B83: 228.2791836 | C83: 446.7902874 | D83: 799.3244451 | E83: 274.0618023 | F83: 320.2590347 | G83: 163.1320708 | H83: 288.4065978 | I83: 824.8967211 | J83: 602.5733721 | K83: 156.1515269
A84: 16 | B84: 387.9659652 | C84: 141.5008131 | D84: 40.20331751 | E84: 245.5296871 | F84: 50.43638306 | G84: 110.7629306 | H84: 576.270601 | I84: 321.6735714 | J84: 176.2471368 | K84: 135.478069
A85: 17 | B85: 162.2001032 | C85: 51.81814585 | D85: 469.3575454 | E85: 316.1869687 | F85: 177.1925565 | G85: 273.7884009 | H85: 300.6013495 | I85: 752.9956193 | J85: 676.7951012 | K85: 81.27678151
A86: 18 | B86: 255.2840189 | C86: 262.0565916 | D86: 88.79043505 | E86: 434.4349865 | F86: 131.8921579 | G86: 115.9143678 | H86: 444.0690633 | I86: 598.3252946 | J86: 174.8438459 | K86: 364.7617066
A87: 19 | B87: 110.4145136 | C87: 217.9014489 | D87: 472.0849489 | E87: 928.2607204 | F87: 456.1077242 | G87: 710.2435097 | H87: 110.3529612 | I87: 139.0241638 | J87: 373.9810195 | K87: 167.5404201
A88: 20 | B88: 158.9807171 | C88: 171.3514095 | D88: 54.11400846 | E88: 47.35801339 | F88: 135.6067322 | G88: 1008.070161 | H88: 607.9034563 | I88: 460.729251 | J88: 227.1863616 | K88: 145.8586648
A89: 21 | B89: 237.4108305 | C89: 97.84231199 | D89: 264.3185987 | E89: 78.78004463 | F89: 316.1025579 | G89: 474.273758 | H89: 203.1223392 | I89: 103.8956107 | J89: 262.5388125 | K89: 587.2276411
A90: 22 | B90: 599.1016733 | C90: 1107.937482 | D90: 275.9865377 | E90: 156.3844296 | F90: 164.6949399 | G90: 340.6466921 | H90: 85.76833653 | I90: 361.6257066 | J90: 855.7466822 | K90: 258.0818327
A91: 23 | B91: 633.4440609 | C91: 204.489477 | D91: 791.1886091 | E91: 221.919406 | F91: 228.9678159 | G91: 450.9221438 | H91: 194.5149126 | I91: 355.0169332 | J91: 264.0844507 | K91: 398.8278044
A92: 24 | B92: 270.9297729 | C92: 246.0906928 | D92: 31.63986757 | E92: 66.36881197 | F92: 365.0116788 | G92: 203.2676756 | H92: 412.0201081 | I92: 397.3887945 | J92: 320.7827228 | K92: 132.0104774
A93: 25 | B93: 173.0116552 | C93: 1030.815839 | D93: 315.4547435 | E93: 418.6846883 | F93: 1004.638489 | G93: 872.6306154 | H93: 149.5710891 | I93: 119.1193705 | J93: 178.7015023 | K93: 372.0050436
A94: 26 | B94: 49.87928691 | C94: 542.4445373 | D94: 88.74779069 | E94: 271.0614392 | F94: 134.7801587 | G94: 197.1447185 | H94: 218.5054168 | I94: 82.66071427 | J94: 330.2320805 | K94: 110.0841287
A95: 27 | B95: 924.130789 | C95: 101.6837004 | D95: 247.1644131 | E95: 72.98378095 | F95: 296.0843233 | G95: 1159.402736 | H95: 199.5639957 | I95: 78.53276515 | J95: 590.3983816 | K95: 544.9378006
A96: 28 | B96: 309.9986411 | C96: 511.7698548 | D96: 383.2437349 | E96: 705.620693 | F96: 115.4489987 | G96: 189.5312661 | H96: 161.70977 | I96: 393.0743926 | J96: 222.8372226 | K96: 335.9534964
A97: 29 | B97: 344.1873929 | C97: 192.8450748 | D97: 387.7168963 | E97: 303.5143132 | F97: 541.4120327 | G97: 423.956178 | H97: 143.1807147 | I97: 228.7769994 | J97: 393.1866949 | K97: 242.965757
A98: 30 | B98: 182.3145853 | C98: 607.9011642 | D98: 244.8949563 | E98: 219.1885841 | F98: 100.0498324 | G98: 580.2085158 | H98: 466.6020742 | I98: 276.0950638 | J98: 56.87401778 | K98: 106.083991
A99: 31 | B99: 423.715471 | C99: 227.588146 | D99: 228.9225509 | E99: 1516.621722 | F99: 353.7545418 | G99: 62.63082731 | H99: 980.1568527 | I99: 112.8705963 | J99: 342.4042065 | K99: 289.6017357
A100: 32 | B100: 234.2827513 | C100: 180.8590035 | D100: 632.2897535 | E100: 148.6748303 | F100: 305.5267078 | G100: 88.60976696 | H100: 159.7039417 | I100: 184.956388 | J100: 191.2107267 | K100: 769.0556671
A101: 33 | B101: 196.45169 | C101: 669.3896422 | D101: 391.4653082 | E101: 54.90001611 | F101: 142.353235 | G101: 573.370243 | H101: 261.2665534 | I101: 315.8163207 | J101: 159.3475021 | K101: 446.5683988
A102: 34 | B102: 397.1214264 | C102: 133.1460803 | D102: 524.6384807 | E102: 982.2949167 | F102: 179.8678372 | G102: 219.2628444 | H102: 387.412464 | I102: 306.3839689 | J102: 839.5959924 | K102: 469.098752
A103: 35 | B103: 92.2415679 | C103: 160.2021992 | D103: 230.4442969 | E103: 304.5190503 | F103: 252.1912493 | G103: 234.0614044 | H103: 743.6146837 | I103: 405.1030464 | J103: 221.9330491 | K103: 324.889513
A104: 36 | B104: 38.40304098 | C104: 321.0191657 | D104: 361.9176015 | E104: 157.6601771 | F104: 180.8521985 | G104: 624.8697239 | H104: 621.7181241 | I104: 827.9308529 | J104: 207.785793 | K104: 139.5880892
A105: 37 | B105: 467.3811099 | C105: 314.3973029 | D105: 346.6620679 | E105: 95.0899679 | F105: 292.2235173 | G105: 107.6830872 | H105: 230.8124017 | I105: 199.6474541 | J105: 238.7404524 | K105: 259.0726105
A106: 38 | B106: 652.7968135 | C106: 481.8542747 | D106: 150.0271195 | E106: 1203.438159 | F106: 393.3043584 | G106: 134.4430935 | H106: 439.8140162 | I106: 247.9163582 | J106: 1142.847576 | K106: 872.4013678
A107: 39 | B107: 39.88353145 | C107: 208.2675055 | D107: 587.7757694 | E107: 894.0793032 | F107: 47.33797044 | G107: 301.1795096 | H107: 202.0922425 | I107: 259.5035917 | J107: 361.4980369 | K107: 189.2348718
A108: 40 | B108: 877.2610734 | C108: 124.9756342 | D108: 340.3317754 | E108: 196.6930798 | F108: 1434.179293 | G108: 764.738236 | H108: 491.8910042 | I108: 527.0362449 | J108: 157.1964794 | K108: 172.4022431
A109: 41 | B109: 304.6560642 | C109: 1886.209874 | D109: 567.016902 | E109: 366.2993208 | F109: 24.21728516 | G109: 441.4342786 | H109: 304.3310208 | I109: 137.9873995 | J109: 336.3961711 | K109: 132.3763817
A110: 42 | B110: 700.8128873 | C110: 85.50668197 | D110: 366.3636046 | E110: 265.4511298 | F110: 174.226224 | G110: 203.4633551 | H110: 79.07591152 | I110: 273.4556105 | J110: 141.2069437 | K110: 170.3353061
A111: 43 | B111: 89.78619393 | C111: 315.1466418 | D111: 349.76872 | E111: 231.1865576 | F111: 149.5006329 | G111: 44.74892751 | H111: 91.81220982 | I111: 280.4076526 | J111: 265.3338593 | K111: 399.7856328
A112: 44 | B112: 140.3706936 | C112: 174.2540872 | D112: 232.5751511 | E112: 79.75889421 | F112: 408.1972993 | G112: 123.0453744 | H112: 591.9367636 | I112: 221.5372326 | J112: 128.6484168 | K112: 606.1426494
A113: 45 | B113: 256.4177003 | C113: 432.736587 | D113: 303.6903531 | E113: 249.4998424 | F113: 183.3863808 | G113: 66.64663096 | H113: 435.5040765 | I113: 382.5935025 | J113: 334.5608673 | K113: 97.48998735
A114: 46 | B114: 142.094883 | C114: 378.8451751 | D114: 816.2269247 | E114: 341.4352677 | F114: 102.2180434 | G114: 691.9722977 | H114: 445.7896502 | I114: 214.2624585 | J114: 329.9411181 | K114: 410.5258084
A115: 47 | B115: 235.0893857 | C115: 254.3297667 | D115: 410.924919 | E115: 328.3072386 | F115: 170.6993242 | G115: 98.35477101 | H115: 723.2232598 | I115: 66.20793467 | J115: 536.7501692 | K115: 241.288004
A116: 48 | B116: 924.8898463 | C116: 174.6278285 | D116: 453.0482091 | E116: 444.6000181 | F116: 448.0163885 | G116: 857.5616321 | H116: 248.169508 | I116: 371.835519 | J116: 53.40230766 | K116: 974.0900193
A117: 49 | B117: 344.564846 | C117: 472.7385508 | D117: 509.4052326 | E117: 660.4127657 | F117: 118.7868631 | G117: 378.0941963 | H117: 69.06458857 | I117: 876.7267359 | J117: 897.9325524 | K117: 591.3952569
A118: 50 | B118: 498.0089257 | C118: 623.85215 | D118: 603.8524654 | E118: 103.0957862 | F118: 504.2506697 | G118: 213.3294306 | H118: 549.6978571 | I118: 132.4412458 | J118: 437.1096246 | K118: 170.1267441
A119: 51 | B119: 689.5060726 | C119: 63.7553426 | D119: 686.70057 | E119: 121.0109544 | F119: 399.7940764 | G119: 272.3379679 | H119: 530.575972 | I119: 587.4822558 | J119: 331.5035633 | K119: 314.3758589
A120: 52 | B120: 192.7719432 | C120: 380.7401184 | D120: 339.0429944 | E120: 216.6208212 | F120: 201.4592391 | G120: 159.0785565 | H120: 131.0089789 | I120: 422.4552127 | J120: 133.566532 | K120: 360.7088825
A121: 53 | B121: 68.80034415 | C121: 95.31238474 | D121: 481.0434739 | E121: 109.7790412 | F121: 417.4467802 | G121: 225.4676063 | H121: 80.35300564 | I121: 144.0442453 | J121: 186.3690696 | K121: 326.7521078
A122: 54 | B122: 464.8310107 | C122: 243.4392941 | D122: 86.39390904 | E122: 179.1434144 | F122: 152.0615213 | G122: 116.5157118 | H122: 450.2434257 | I122: 150.9425095 | J122: 313.8221268 | K122: 228.0413731
A123: 55 | B123: 808.2388261 | C123: 239.9048422 | D123: 480.5577931 | E123: 405.843459 | F123: 775.0648346 | G123: 40.84342855 | H123: 261.0924993 | I123: 97.71439173 | J123: 460.0516736 | K123: 243.7505955
A124: 56 | B124: 233.3491194 | C124: 122.9378392 | D124: 318.7441817 | E124: 280.2507138 | F124: 175.4281995 | G124: 116.3079798 | H124: 120.0880875 | I124: 221.0891614 | J124: 126.8568311 | K124: 94.06699947
A125: 57 | B125: 123.1675373 | C125: 438.5521111 | D125: 148.0801883 | E125: 112.3773055 | F125: 230.2462392 | G125: 326.2335683 | H125: 110.6384715 | I125: 402.5116039 | J125: 626.5886016 | K125: 123.3311073
A126: 58 | B126: 167.6751501 | C126: 970.6077949 | D126: 520.9861764 | E126: 97.15448155 | F126: 235.8466103 | G126: 108.0118737 | H126: 446.2230213 | I126: 105.7832279 | J126: 369.621165 | K126: 268.2630804
A127: 59 | B127: 614.6236415 | C127: 352.8924874 | D127: 253.4416004 | E127: 220.0608101 | F127: 182.6358587 | G127: 564.5405962 | H127: 435.7492154 | I127: 289.1400581 | J127: 317.5103511 | K127: 281.3446661
A128: 60 | B128: 105.7874457 | C128: 379.9324676 | D128: 279.5211579 | E128: 78.06193431 | F128: 406.1804203 | G128: 328.6300048 | H128: 76.69618986 | I128: 135.3227537 | J128: 243.3807852 | K128: 180.465244
A129: 61 | B129: 466.3075306 | C129: 395.0049216 | D129: 222.7809935 | E129: 497.7928119 | F129: 762.928971 | G129: 317.5804663 | H129: 595.3699407 | I129: 512.5858489 | J129: 682.1907048 | K129: 134.7616823
A130: 62 | B130: 73.32234334 | C130: 200.49787 | D130: 706.0371432 | E130: 58.99359378 | F130: 260.3888309 | G130: 215.0213271 | H130: 383.866273 | I130: 144.285563 | J130: 286.1466107 | K130: 214.7240582
A131: 63 | B131: 151.5255932 | C131: 523.4854628 | D131: 362.6499147 | E131: 62.23299239 | F131: 99.87580529 | G131: 310.4332741 | H131: 177.4418654 | I131: 435.029601 | J131: 540.5975056 | K131: 206.3067797
A132: 64 | B132: 263.0975678 | C132: 259.2260238 | D132: 124.4318888 | E132: 468.1794001 | F132: 201.2461797 | G132: 302.4148788 | H132: 182.7042071 | I132: 309.6293734 | J132: 355.6417893 | K132: 615.3381967
A133: 65 | B133: 177.9678566 | C133: 115.6530024 | D133: 160.6659784 | E133: 409.1754529 | F133: 329.873261 | G133: 299.6193191 | H133: 140.7457973 | I133: 958.6032449 | J133: 581.7683484 | K133: 159.783156
A134: 66 | B134: 162.9478849 | C134: 321.2315362 | D134: 557.2616811 | E134: 525.4328925 | F134: 341.716252 | G134: 391.0843459 | H134: 25.11207421 | I134: 108.0275341 | J134: 118.9462948 | K134: 448.7364041
A135: 67 | B135: 212.2752239 | C135: 280.9470551 | D135: 219.537702 | E135: 822.6238358 | F135: 316.6325997 | G135: 567.2328893 | H135: 231.2082555 | I135: 804.2760979 | J135: 296.9035513 | K135: 179.92471
A136: 68 | B136: 197.8339641 | C136: 152.2563266 | D136: 150.8185638 | E136: 874.8603856 | F136: 78.15971765 | G136: 206.8732356 | H136: 493.3904036 | I136: 1049.6563 | J136: 151.1854572 | K136: 288.6003995
A137: 69 | B137: 162.9975197 | C137: 318.9461046 | D137: 233.2559334 | E137: 232.5764849 | F137: 430.5066059 | G137: 738.8689568 | H137: 1124.225929 | I137: 496.8707758 | J137: 874.270532 | K137: 139.6120302
A138: 70 | B138: 237.6548572 | C138: 96.57223469 | D138: 573.2418249 | E138: 227.8334903 | F138: 284.0586243 | G138: 313.3836442 | H138: 69.74021861 | I138: 258.6354472 | J138: 91.60235219 | K138: 358.5286371
A139: 71 | B139: 637.0691809 | C139: 292.5689498 | D139: 628.5827401 | E139: 111.1185457 | F139: 2096.601316 | G139: 116.6421197 | H139: 356.2970462 | I139: 394.9354436 | J139: 498.9049398 | K139: 810.4463171
A140: 72 | B140: 177.0260161 | C140: 600.1084095 | D140: 628.4725174 | E140: 170.8439179 | F140: 964.0134826 | G140: 215.555758 | H140: 317.188352 | I140: 1618.065025 | J140: 436.5951211 | K140: 485.6264112
A141: 73 | B141: 184.6941794 | C141: 114.4873792 | D141: 2366.236544 | E141: 117.0279174 | F141: 93.98962421 | G141: 268.9910159 | H141: 116.2191015 | I141: 112.0078482 | J141: 358.4185874 | K141: 208.6854956
A142: 74 | B142: 109.7966466 | C142: 241.6634677 | D142: 907.1329151 | E142: 802.2871658 | F142: 532.4703034 | G142: 136.380199 | H142: 738.7301371 | I142: 808.9492518 | J142: 283.7911583 | K142: 299.8048303
A143: 75 | B143: 403.8872295 | C143: 143.2348893 | D143: 213.8280735 | E143: 70.96935257 | F143: 328.8428046 | G143: 186.7663763 | H143: 67.93683995 | I143: 383.2087491 | J143: 425.9595793 | K143: 150.2392354
A144: 76 | B144: 192.7750529 | C144: 574.4950212 | D144: 624.0564869 | E144: 325.7216984 | F144: 126.1126615 | G144: 120.2578836 | H144: 603.1908069 | I144: 694.779165 | J144: 479.303473 | K144: 291.0932132
A145: 77 | B145: 229.844383 | C145: 575.0787373 | D145: 225.0259783 | E145: 248.6417625 | F145: 361.0624482 | G145: 106.1667192 | H145: 136.6611913 | I145: 190.7959289 | J145: 342.6187843 | K145: 151.853483
A146: 78 | B146: 111.1698175 | C146: 451.1381982 | D146: 261.2948541 | E146: 747.4923505 | F146: 258.6478323 | G146: 444.8948191 | H146: 639.1260974 | I146: 420.2317857 | J146: 422.3876262 | K146: 658.2755397
A147: 79 | B147: 247.9429286 | C147: 206.0645362 | D147: 271.632818 | E147: 106.5428483 | F147: 392.1130733 | G147: 216.1937698 | H147: 128.1673468 | I147: 617.800729 | J147: 370.9379855 | K147: 401.0058751
A148: 80 | B148: 177.52241 | C148: 364.8976478 | D148: 130.255551 | E148: 464.5078186 | F148: 280.5169553 | G148: 707.883778 | H148: 184.7204374 | I148: 267.6522822 | J148: 201.2403741 | K148: 77.00105237
A149: 81 | B149: 124.614187 | C149: 146.4685309 | D149: 137.8405747 | E149: 124.143981 | F149: 357.3183123 | G149: 564.8374953 | H149: 406.8794002 | I149: 408.7766084 | J149: 81.63764087 | K149: 135.1571686
A150: 82 | B150: 640.7135553 | C150: 88.02650027 | D150: 600.5007605 | E150: 115.8962257 | F150: 196.5980685 | G150: 154.1073168 | H150: 226.9987677 | I150: 154.0177437 | J150: 118.8122061 | K150: 271.4992169
A151: 83 | B151: 593.9460716 | C151: 243.2543582 | D151: 712.1805836 | E151: 341.2317082 | F151: 212.0450549 | G151: 231.81016 | H151: 325.6732501 | I151: 595.6076183 | J151: 249.0958141 | K151: 337.2062985
A152: 84 | B152: 317.979628 | C152: 387.7721838 | D152: 444.8681707 | E152: 183.5766484 | F152: 624.4041205 | G152: 61.36035358 | H152: 142.931388 | I152: 671.2166801 | J152: 118.6158365 | K152: 281.1013335
A153: 85 | B153: 665.7728749 | C153: 114.4269488 | D153: 638.455262 | E153: 119.4868261 | F153: 384.9473786 | G153: 681.7239756 | H153: 316.8601093 | I153: 329.87624 | J153: 178.0644448 | K153: 445.5263958
A154: 86 | B154: 335.0291105 | C154: 194.6321593 | D154: 414.0801288 | E154: 202.8080861 | F154: 341.1131303 | G154: 349.0822817 | H154: 438.6728156 | I154: 318.8165776 | J154: 448.6890963 | K154: 312.5847347
A155: 87 | B155: 326.1867486 | C155: 539.2532051 | D155: 177.9904107 | E155: 52.17158964 | F155: 124.0902965 | G155: 292.5349856 | H155: 155.2591824 | I155: 69.39530201 | J155: 535.3975819 | K155: 442.2205655
A156: 88 | B156: 112.2669114 | C156: 96.05477816 | D156: 767.7918015 | E156: 36.8676061 | F156: 319.0384318 | G156: 249.0380321 | H156: 109.4361112 | I156: 425.2961796 | J156: 185.5138483 | K156: 112.7984938
A157: 89 | B157: 1203.839846 | C157: 163.9676611 | D157: 292.3455778 | E157: 240.6694679 | F157: 222.6306649 | G157: 262.0028063 | H157: 367.535979 | I157: 312.2464966 | J157: 106.1022609 | K157: 746.5155429
A158: 90 | B158: 446.4730616 | C158: 98.13989968 | D158: 220.3261626 | E158: 158.4323979 | F158: 412.1616688 | G158: 449.2104378 | H158: 165.2957599 | I158: 76.59475727 | J158: 372.749741 | K158: 259.7378477
A159: 91 | B159: 109.098257 | C159: 825.4689505 | D159: 161.3264696 | E159: 1033.868628 | F159: 123.2605018 | G159: 293.3680083 | H159: 257.1028952 | I159: 126.5273958 | J159: 110.6515538 | K159: 886.7269037
A160: 92 | B160: 122.8211559 | C160: 423.6977993 | D160: 951.3897591 | E160: 706.2302727 | F160: 256.3863476 | G160: 216.0207637 | H160: 521.807524 | I160: 170.5089321 | J160: 126.2272466 | K160: 160.9992587
A161: 93 | B161: 150.8822843 | C161: 146.9946434 | D161: 175.499027 | E161: 322.8358285 | F161: 50.21690144 | G161: 171.9998477 | H161: 559.4987352 | I161: 122.0836941 | J161: 155.4366126 | K161: 210.7212549
A162: 94 | B162: 276.4159341 | C162: 263.2770121 | D162: 443.8800287 | E162: 186.5973665 | F162: 433.5343022 | G162: 550.0128746 | H162: 438.1053043 | I162: 191.9384217 | J162: 188.0439838 | K162: 212.229366
A163: 95 | B163: 243.0611821 | C163: 180.0497105 | D163: 795.521652 | E163: 365.0963674 | F163: 450.7255216 | G163: 287.2125477 | H163: 168.1529631 | I163: 870.1959275 | J163: 104.3108148 | K163: 117.3832146
A164: 96 | B164: 635.0066234 | C164: 290.0515257 | D164: 82.4732952 | E164: 242.318958 | F164: 284.8153941 | G164: 206.356623 | H164: 167.662676 | I164: 766.1067428 | J164: 598.6165834 | K164: 320.3875098
A165: 97 | B165: 237.1324155 | C165: 97.68848107 | D165: 582.8053534 | E165: 557.1212156 | F165: 455.2530667 | G165: 120.3187142 | H165: 126.0372997 | I165: 845.7351382 | J165: 149.8542791 | K165: 118.9456323
A166: 98 | B166: 82.84686496 | C166: 277.6684156 | D166: 755.2468674 | E166: 580.8466582 | F166: 375.0061756 | G166: 931.4015036 | H166: 864.618224 | I166: 459.0238266 | J166: 165.3678034 | K166: 540.2017582
A167: 99 | B167: 358.8196623 | C167: 319.6092011 | D167: 92.42496319 | E167: 412.9579857 | F167: 522.0695255 | G167: 500.3549926 | H167: 253.2243426 | I167: 335.2097875 | J167: 231.1733355 | K167: 164.360233
A168: 100 | B168: 92.28821443 | C168: 55.59048933 | D168: 409.2239336 | E168: 164.0574022 | F168: 181.2336152 | G168: 109.8048972 | H168: 330.8199334 | I168: 439.8973926 | J168: 372.7847527 | K168: 136.4750853
A169: 101 | B169: 180.5285939 | C169: 290.7236497 | D169: 427.5889796 | E169: 966.224582 | F169: 366.5211403 | G169: 367.1141784 | H169: 400.8070838 | I169: 271.6551336 | J169: 260.5924591 | K169: 188.5879234
A170: 102 | B170: 104.735545 | C170: 254.3439425 | D170: 106.2472702 | E170: 476.575461 | F170: 348.5459932 | G170: 237.3446018 | H170: 517.4169718 | I170: 286.0540355 | J170: 608.7451368 | K170: 564.9653006
A171: 103 | B171: 328.5800143 | C171: 386.2927436 | D171: 502.9403156 | E171: 243.2944319 | F171: 280.3727869 | G171: 315.3875833 | H171: 471.0785896 | I171: 237.7962345 | J171: 1518.762546 | K171: 210.4553866
A172: 104 | B172: 480.7484996 | C172: 466.2309443 | D172: 159.7596649 | E172: 165.687763 | F172: 140.4123747 | G172: 97.82087416 | H172: 118.0231462 | I172: 702.9114854 | J172: 289.3499419 | K172: 130.1002268
A173: 105 | B173: 434.7509133 | C173: 417.4918104 | D173: 349.1501375 | E173: 99.63426048 | F173: 116.6350527 | G173: 499.8815411 | H173: 456.1791557 | I173: 101.9703231 | J173: 38.46269341 | K173: 203.3101287
A174: 106 | B174: 217.5675026 | C174: 40.71481508 | D174: 181.6806872 | E174: 512.8240776 | F174: 547.885396 | G174: 191.6652597 | H174: 362.6815441 | I174: 277.2829272 | J174: 156.5461206 | K174: 184.1785443
A175: 107 | B175: 404.1610775 | C175: 71.57476538 | D175: 430.4757093 | E175: 506.6435544 | F175: 107.031202 | G175: 188.2225079 | H175: 540.4202175 | I175: 359.3089412 | J175: 632.2902951 | K175: 189.9495216
A176: 108 | B176: 364.543722 | C176: 275.2041094 | D176: 418.9136419 | E176: 164.241211 | F176: 326.9251372 | G176: 316.1601718 | H176: 269.8682316 | I176: 286.9011653 | J176: 1255.774841 | K176: 469.6705935
A177: 109 | B177: 294.3093324 | C177: 119.3382438 | D177: 511.5487472 | E177: 217.1363799 | F177: 225.4378069 | G177: 174.1279071 | H177: 71.44409553 | I177: 190.0136725 | J177: 311.3872989 | K177: 149.7263774
A178: 110 | B178: 216.5641736 | C178: 109.0819462 | D178: 197.399109 | E178: 140.1491897 | F178: 92.00511059 | G178: 272.6336539 | H178: 233.0264729 | I178: 579.2673764 | J178: 327.3630763 | K178: 362.9161273
A179: 111 | B179: 226.0370304 | C179: 511.3705581 | D179: 1330.075628 | E179: 206.9781162 | F179: 213.2948487 | G179: 821.3450428 | H179: 502.0091208 | I179: 371.3876721 | J179: 866.1697292 | K179: 403.3957212
A180: 112 | B180: 61.74251014 | C180: 382.1219611 | D180: 360.4845397 | E180: 336.9642478 | F180: 197.8362632 | G180: 316.0664454 | H180: 73.25710704 | I180: 224.7701658 | J180: 111.8139043 | K180: 164.7839057
A181: 113 | B181: 1160.971687 | C181: 146.5996953 | D181: 1034.446694 | E181: 139.6957365 | F181: 120.3096733 | G181: 347.9234353 | H181: 127.9423771 | I181: 192.5586782 | J181: 141.519636 | K181: 177.4816842
A182: 114 | B182: 636.4913451 | C182: 264.1763737 | D182: 437.2314581 | E182: 223.2807226 | F182: 208.3186738 | G182: 805.9165347 | H182: 122.333192 | I182: 63.2647566 | J182: 300.2916044 | K182: 155.4266099
A183: 115 | B183: 179.6633071 | C183: 34.47011693 | D183: 717.9196065 | E183: 323.1586356 | F183: 215.5339578 | G183: 174.685757 | H183: 264.928056 | I183: 208.8850748 | J183: 195.0363316 | K183: 240.6666001
A184: 116 | B184: 337.6072154 | C184: 356.7757832 | D184: 610.0376341 | E184: 136.3109327 | F184: 332.6302985 | G184: 47.44530564 | H184: 677.9256429 | I184: 128.3997447 | J184: 219.2490682 | K184: 341.7128532
A185: 117 | B185: 652.2390135 | C185: 73.8875685 | D185: 157.7704956 | E185: 969.1370511 | F185: 290.7676001 | G185: 235.192917 | H185: 28.88848661 | I185: 597.5280032 | J185: 530.9417302 | K185: 880.5630728
A186: 118 | B186: 327.0130804 | C186: 330.7062785 | D186: 341.7114623 | E186: 288.1660156 | F186: 71.06841687 | G186: 403.6241981 | H186: 150.8017329 | I186: 46.98145417 | J186: 642.8824347 | K186: 250.9425686
A187: 119 | B187: 47.12996652 | C187: 95.43297307 | D187: 121.9181742 | E187: 34.94967086 | F187: 649.9406951 | G187: 188.9535481 | H187: 80.20656989 | I187: 281.0697163 | J187: 109.0972924 | K187: 90.42377309
A188: 120 | B188: 247.9756791 | C188: 785.2804122 | D188: 209.1686594 | E188: 628.6296793 | F188: 69.913027 | G188: 165.3426098 | H188: 394.4501664 | I188: 254.2341593 | J188: 731.3759209 | K188: 940.9352419
A189: 121 | B189: 133.7564453 | C189: 396.5738852 | D189: 696.6057343 | E189: 2113.125272 | F189: 71.91204021 | G189: 247.6579542 | H189: 407.8349263 | I189: 664.2590067 | J189: 314.3323425 | K189: 130.2531913
A190: 122 | B190: 466.519678 | C190: 224.6076387 | D190: 208.1017825 | E190: 226.4602196 | F190: 514.005365 | G190: 172.193281 | H190: 165.7215096 | I190: 661.9099602 | J190: 360.4188198 | K190: 768.7154576
A191: 123 | B191: 189.7433212 | C191: 69.13227172 | D191: 912.7519855 | E191: 297.0807188 | F191: 260.3019292 | G191: 121.0273443 | H191: 198.9063683 | I191: 268.3378937 | J191: 150.8047534 | K191: 100.4611261
A192: 124 | B192: 226.5185763 | C192: 578.1896857 | D192: 202.9834108 | E192: 437.3220167 | F192: 115.4779498 | G192: 209.3348576 | H192: 649.8912907 | I192: 178.7692979 | J192: 349.225311 | K192: 462.9043365
A193: 125 | B193: 161.7651805 | C193: 881.6964353 | D193: 102.0433839 | E193: 480.968823 | F193: 305.1384193 | G193: 190.7991914 | H193: 230.9488635 | I193: 276.1924731 | J193: 156.754758 | K193: 190.1417107
A194: 126 | B194: 193.4255138 | C194: 329.640056 | D194: 156.418346 | E194: 449.6747496 | F194: 286.8740047 | G194: 77.52087894 | H194: 254.504324 | I194: 796.47001 | J194: 409.668065 | K194: 157.8906456
A195: 127 | B195: 65.13079037 | C195: 222.4649398 | D195: 176.73209 | E195: 484.4462359 | F195: 161.7040503 | G195: 874.5970533 | H195: 432.2621118 | I195: 106.0055777 | J195: 291.2557173 | K195: 263.6951651
A196: 128 | B196: 131.3170324 | C196: 43.96512136 | D196: 64.40449778 | E196: 65.10084041 | F196: 62.22835585 | G196: 821.8259476 | H196: 90.73946902 | I196: 98.89353647 | J196: 93.54083384 | K196: 129.3837118
A197: 129 | B197: 137.4013269 | C197: 243.5589944 | D197: 254.2425434 | E197: 113.734602 | F197: 90.14826419 | G197: 202.5410812 | H197: 155.7048522 | I197: 127.3524393 | J197: 445.5579307 | K197: 345.5885017
A198: 130 | B198: 522.6081944 | C198: 698.3140164 | D198: 796.8327749 | E198: 386.6928453 | F198: 415.2469395 | G198: 264.8710943 | H198: 116.2770667 | I198: 200.3888188 | J198: 98.52766378 | K198: 354.7695938
A199: 131 | B199: 253.1176293 | C199: 352.7240802 | D199: 190.4846584 | E199: 618.6654132 | F199: 203.4536874 | G199: 383.0409781 | H199: 1554.719158 | I199: 324.4046166 | J199: 361.7786142 | K199: 61.8764813
A200: 132 | B200: 373.7797755 | C200: 258.7865032 | D200: 240.4447957 | E200: 271.1861003 | F200: 458.1699881 | G200: 116.2199101 | H200: 248.1778774 | I200: 390.3309842 | J200: 457.0136831 | K200: 136.9046996
A201: 133 | B201: 128.8710577 | C201: 339.7030425 | D201: 134.8431405 | E201: 188.3115646 | F201: 458.8055589 | G201: 1099.730937 | H201: 45.80561335 | I201: 52.60958262 | J201: 212.1056146 | K201: 648.3882739
A202: 134 | B202: 810.8036267 | C202: 457.3474737 | D202: 107.7095191 | E202: 220.8432301 | F202: 195.2791805 | G202: 187.5413103 | H202: 108.35779 | I202: 509.4221872 | J202: 72.11659621 | K202: 99.9904879
... 866 more rows
